{"text_format":"1","workbook":"xlsx","n_sheets":1,"sheets":["0904.4"],"not_rendered":{"charts":0,"images":0,"macros":0,"external_links":0,"defined_names":0,"comments":0,"pivot_tables":0},"unopened":[],"bounds":{"document_bytes":16777216,"sheet_cells":100000,"rows_first":2000,"rows_last":500,"rows_between":2000,"halvings":0,"cell_chars":16384,"cell_head_chars":4096},"cells_cut":0,"cells_raw":0,"read":"whole","date_system":"1900"}

{"sheet":"0904.4","index":0,"n_rows":82,"n_cols":23,"rows_kept":82,"cut":false,"hidden":false,"merged":[[86,1,86,3],[9,15,9,16],[9,17,9,18],[7,0,10,0],[9,19,9,20],[9,7,9,8],[79,15,79,20],[80,6,80,12],[80,15,80,20],[9,9,9,10],[9,11,9,12],[81,6,81,12],[81,15,81,20],[7,1,10,1],[7,3,8,4],[8,5,8,6],[5,0,5,5],[9,3,10,3],[9,4,10,4],[9,5,10,5],[81,0,81,3],[80,0,80,3],[9,21,9,22],[8,7,8,22],[7,5,7,22],[3,6,3,17],[0,0,0,5],[0,18,0,22],[1,0,2,5],[1,6,1,17],[1,18,2,22],[2,6,2,17],[9,13,9,14],[9,6,10,6],[7,2,10,2],[3,0,3,5],[4,6,4,17],[4,0,4,5]]}
["Biểu số: 1004.4-6T,N/BTNMT",null,null,null,null,null,null,null,null,null,null,null,null,null,null,null,null,null,"Đơn vị báo cáo: Thanh tra Bộ"]
["Ban hành kèm theo thông tư số 22/2023/TT-BTNMT ngày 15 tháng 12 năm 2023 của  Bộ trưởng Bộ TN&MT",null,null,null,null,null,"TỔNG HỢP XỬ LÝ VI PHẠM BẰNG",null,null,null,null,null,null,null,null,null,null,null,"Đơn vị nhận báo cáo: Vụ Kế hoạch - Tài chính"]
[null,null,null,null,null,null,"HÌNH THỨC XỬ PHẠT VI PHẠM HÀNH CHÍNH"]
["Ngày nhận báo cáo:",null,null,null,null,null,"QUA THANH TRA, KIỂM TRA"]
["- Báo cáo 6 tháng: Ngày 20/6 năm báo cáo",null,null,null,null,null,"Năm 2023"]
["- Báo cáo năm: Ngày 15/3 năm sau"]
[]
["STT","Tỉnh/thành phố","Mã số","Tổng số",null,"Trong đó:"]
[null,null,null,null,null,"Thanh tra, \nkiểm tra hành chính",null,"Thanh tra, kiểm tra chuyên ngành"]
[null,null,null,"Số tổ chức, cá nhân","Số tiền (triệu đồng)","Số tổ chức, cá nhân","Số tiền (triệu đồng)","Đất đai",null,"Tài nguyên nước",null,"Tài nguyên khoáng sản, địa chất",null,"Môi trường",null,"Khí tượng thủy văn và Biến đổi khí hậu",null,"Đo đạc và Bản đồ",null,"Biển và Hải đảo",null,"Khác"]
[null,null,null,null,null,null,null,"Số tổ chức, cá nhân","Số tiền (triệu đồng)","Số tổ chức, cá nhân","Số tiền (triệu đồng)","Số tổ chức, cá nhân","Số tiền (triệu đồng)","Số tổ chức, cá nhân","Số tiền (triệu đồng)","Số tổ chức, cá nhân","Số tiền (triệu đồng)","Số tổ chức, cá nhân","Số tiền (triệu đồng)","Số tổ chức, cá nhân","Số tiền (triệu đồng)","Số tổ chức, cá nhân","Số tiền (triệu đồng)"]
["A","B",null,1,2,3,4,5,6,7,8,9,10,11,12,13,14,15,16,17,18,19,20]
[1,"An Giang",null,{"$f":"SUM(D12)","v":1},{"$f":"SUM(G13,I13,K13,M13,O13,Q13,S13,U13,W13)","v":15},null,null,null,null,null,null,1,15]
[2,"Bà Rịa - Vũng Tàu",null,{"$f":"SUM(F14,H14,J14,L14,N14,P14,R14,T14,V14)","v":37},3986,null,null,1,1965,18,null,null,null,2,640,null,null,null,null,null,null,16,1381]
[3,"Bạc Liêu ",null,6,109,null,null,6,109]
[4,"Bắc Kạn",null,24,489,null,null,13,318,null,null,null,null,null,null,null,null,null,null,null,null,11,171]
[5,"Bắc Giang",null,18,1966,null,null,null,null,null,null,4,1180,14,786]
[6,"Bắc Ninh",null,1,0,null,null,null,null,null,null,null,null,null,null,null,null,1]
[7,"Bến Tre",null,4,980,null,null,null,null,null,null,null,null,1,510,null,null,null,null,null,null,3,470]
[8,"Bình Dương",null,16,4000,null,null,null,null,null,null,null,null,null,null,null,null,null,null,null,null,16,4000]
[9,"Bình Định",null,5,0,null,null,null,null,null,null,null,null,null,null,null,null,5]
[10,"Bình Phước",null,0,0]
[11,"Bình Thuận",null,0,0]
[12,"Cà Mau",null,7,59,null,null,null,null,1,7,null,null,6,52]
[13,"Cao Bằng",null,6,522,null,null,2,46,null,null,4,476]
[14,"Cần Thơ",null,6,534,null,null,6,534]
[15,"Đà Nẵng",null,6,922,null,null,null,null,null,null,null,null,6,922]
[16,"Đắc Lắk",null,5,585,null,null,null,null,null,null,null,null,null,null,null,null,null,null,null,null,5,585]
[17,"Đắc Nông",null,0,0]
[18,"Đồng Nai",null,0,0]
[19,"Đồng Tháp",null,0,0]
[20,"Điện Biên",null,4,53,null,null,4,53]
[21,"Gia Lai",null,3,60,null,null,null,null,1,15,1,15,1,30]
[22,"Hà Giang",null,8,1507,null,null,null,null,null,null,3,320,5,1187]
[23,"Hà Nam ",null,0,0]
[24,"Hà Nội",null,0,0]
[25,"Hà Tĩnh",null,0,0]
[26,"Hải Dương",null,46,3556,null,null,9,314,null,null,null,null,28,3200,null,null,null,null,null,null,9,42]
[27,"Hải Phòng",null,17,2722,null,null,3,38,null,null,4,1730,10,924,null,null,null,30]
[28,"Hậu Giang",null,0,0]
[29,"TP. Hồ Chí Minh",null,255,34742,null,null,201,20102,null,null,null,null,38,4500,null,null,null,null,null,null,16,10140]
[30,"Hưng Yên",null,21,1533,null,null,null,null,null,null,null,null,4,60,null,null,null,20,null,null,17,1453]
[31,"Hòa Bình",null,0,0]
[32,"Khánh Hoà",null,0,0]
[33,"Kiên Giang",null,0,0]
[34,"Kon Tum ",null,0,0]
[35,"Lai Châu",null,50,2187,null,null,9,"363.3",16,1712,5,475,null,null,null,null,null,null,null,null,20,"2.128.4"]
[36,"Lâm Đồng",null,3,470,null,null,null,null,null,null,null,null,null,null,null,null,null,null,null,null,3,470]
[37,"Lào Cai",null,17,4712,null,null,null,null,null,null,null,null,null,null,null,null,null,null,null,null,17,4712]
[38,"Lạng Sơn",null,12,1430,null,null,null,null,null,null,null,null,null,null,null,null,null,null,null,null,12,1430]
[39,"Long An",null,0,0]
[40,"Nam Định",null,9,0,null,null,8,"558.6",null,null,null,null,1]
[41,"Nghệ An",null,37,1054,null,null,1,3,null,null,1,22,9,320,null,null,null,null,null,null,26,709]
[42,"Ninh Bình",null,0,0]
[43,"Ninh Thuận",null,7,1091,null,null,null,null,null,null,1,74,5,882,null,null,null,null,null,null,1,135]
[44,"Phú Thọ",null,11,1159,null,null,2,198,1,232,1,135,7,594]
[45,"Phú Yên",null,5,150,null,null,2,44,null,null,null,null,null,null,null,null,null,null,null,null,3,106]
[46,"Quảng Bình",null,0,0]
[47,"Quảng Nam",null,24,2102,null,null,4,183,null,null,null,null,null,null,null,null,null,null,null,null,20,1919]
[48,"Quảng Ngãi",null,14,893,null,null,2,255,1,120,2,207,8,301,null,null,null,null,null,null,1,10]
[49,"Quảng Ninh",null,20,1544,null,null,6,231,null,null,5,518,2,135,null,null,null,null,null,null,7,660]
[50,"Quảng Trị",null,8,1001,null,null,7,971,null,null,null,null,null,null,null,null,null,null,null,null,1,30]
[51,"Sơn La",null,35,6450,null,null,19,3539,null,null,1,100,4,645,null,null,null,null,null,null,11,2166]
[52,"Sóc Trăng",null,21,2589,null,null,3,494,11,446,null,null,5,1005,null,null,null,null,null,null,2,644]
[53,"Tây Ninh",null,26,377,null,null,null,null,null,null,null,null,26,377]
[54,"Thái Bình",null,17,4778,null,null,9,3929,null,null,null,null,6,504,null,null,null,null,null,null,2,345]
[55,"Thái Nguyên",null,25,5302,null,null,1,385,null,null,9,2640,15,2277]
[56,"Thanh Hóa",null,69,3808,null,null,1,16,3,180,22,2786,20,826,null,null,null,null,23]
[57,"Thừa Thiên Huế",null,32,4433,null,null,8,1051,6,615,7,910,10,1647,null,null,null,null,null,null,1,210]
[58,"Tiền Giang",null,61,8874,null,null,2,71,12,1449,43,7222,4,132]
[59,"Trà Vinh",null,17,435,null,null,null,null,1,5,null,null,14,350,null,null,null,"5.5",null,null,2,80]
[60,"Tuyên Quang",null,0,0]
[61,"Vĩnh Long",null,20,1119,null,null,7,233,1,35,6,619,6,232]
[62,"Vĩnh Phúc",null,20,2.556,null,null,null,null,null,null,null,null,null,null,null,null,null,null,null,null,20,2.556]
[63,"Yên Bái",null,21,3251,null,null,2,18,null,null,9,1680,6,915,null,null,null,null,null,null,4,638]
[64,"Bộ TNMT",null,602,27433,null,null,null,null,17,2815,18,1995,48,22623,null,null,null,null,null,null,519]
[null,"Tổng số",null,{"$f":"SUM(D13:D76)","v":1679},{"$f":"SUM(E13:E76)","v":144984.55599999998},null,null,{"$f":"SUM(H13:H76)","v":338},35100,89,7631,147,23119,311,46576,null,null,{"$f":"SUM(R13:R76)","v":6},{"$f":"SUM(S13:S76)","v":50},{"$f":"SUM(T13:T76)","v":23},null,{"$f":"SUM(V13:V76)","v":765},{"$f":"SUM(W13:W76)","v":32508.556}]
[]
[]
[null,null,null,null,null,null,null,null,null,null,null,null,null,null,null,"Ngày…….tháng…….năm………"]
["Người lập biểu",null,null,null,null,null,"Người kiểm tra biểu",null,null,null,null,null,null,null,null,"Thủ trưởng đơn vị"]
["(Ký, họ tên)",null,null,null,null,null,"(Ký, họ tên)",null,null,null,null,null,null,null,null,"(Ký tên, đóng dấu, họ tên)"]